bitfinex/quotes_BTCUSD_20211001
["timestamp","ask_amount","ask_price","bid_price","bid_amount"]
[1633053739790,0.0038216,43781.0,43780.0,1.78332051]
[1633053739930,0.0038216,43781.0,43780.0,1.60010148]
[1633053740233,0.0038216,43781.0,43780.0,1.37690148]
[1633053740428,0.0038216,43781.0,43780.0,1.36010148]
[1633053741030,0.00673215,43781.0,43780.0,1.29310148]
[1633053741631,0.00673215,43781.0,43780.0,1.36110148]
[1633053742031,0.00673216,43781.0,43780.0,1.36110148]
[1633053743032,0.00964271,43781.0,43780.0,1.29310148]
[1633053743633,0.00964271,43781.0,43780.0,1.36110148]
[1633053744034,0.01793848,43781.0,43780.0,1.36110148]
[1633053745037,0.02084903,43781.0,43780.0,1.29310148]
[1633053745636,0.02084903,43781.0,43780.0,1.36110148]
[1633053746103,0.02130456,43781.0,43780.0,1.36110148]
[1633053746706,0.02130456,43781.0,43780.0,1.36057138]
[1633053747103,0.02130456,43781.0,43780.0,1.29257138]
[1633053747304,0.02176009,43781.0,43780.0,1.29257138]
[1633053747704,0.02176009,43781.0,43780.0,1.35957138]
[1633053748107,0.02176009,43781.0,43780.0,1.36010148]
[1633053748303,0.02176009,43781.0,43780.0,1.40170148]
[1633053749110,0.02467064,43781.0,43780.0,1.33470148]
[1633053749507,0.00291054,43785.0,43781.0,0.96860026]
[1633053749711,0.00291054,43785.0,43784.0,0.22934799]
[1633053749907,0.00291054,43785.0,43784.0,0.27987809]
[1633053750107,0.00291054,43785.0,43784.0,0.99664187]
[1633053750307,0.00336607,43785.0,43784.0,0.99664187]
[1633053750511,0.00336607,43785.0,43784.0,0.99611177]
[1633053750909,0.00336607,43785.0,43784.0,1.45931177]
[1633053751309,0.0038216,43785.0,43784.0,1.23611177]
[1633053751708,0.0038216,43785.0,43784.0,1.29911177]
[1633053752109,0.0038216,43785.0,43784.0,1.05911177]
[1633053752314,0.00673215,43785.0,43784.0,1.00911177]
[1633053752708,0.00382161,43785.0,43784.0,1.00911177]
[1633053752908,0.00382161,43785.0,43784.0,1.24911177]
[1633053753108,0.00382161,43785.0,43784.0,1.18611177]
[1633053753709,0.00673216,43785.0,43784.0,1.24911177]
[1633053754514,0.00382161,43785.0,43784.0,1.24911177]
[1633053755113,0.00382161,43785.0,43784.0,1.18664187]
[1633053755513,0.00627664,43785.0,43784.0,1.18664187]
[1633053756112,0.00627664,43785.0,43784.0,1.18611177]
[1633053757119,0.00627664,43785.0,43784.0,0.48814578]
[1633053757516,0.00382162,43785.0,43784.0,0.48814578]
[1633053759116,0.00673218,43785.0,43784.0,0.48814578]
[1633053759918,0.00627665,43785.0,43784.0,0.48814578]
[1633053761721,0.00627665,43785.0,43784.0,0.48769025]
[1633053764121,0.00627665,43785.0,43784.0,0.228122]
[1633053765324,0.00166137,43786.0,43784.0,0.228122]
[1633053765921,0.02034034,43789.0,43784.0,0.228122]
[1633053766324,0.02034034,43789.0,43784.0,0.223122]
[1633053766724,0.02034034,43789.0,43788.0,2.69658616]
[1633053766923,0.02034034,43789.0,43788.0,2.92470816]
[1633053767129,0.02034034,43789.0,43788.0,0.228122]
[1633053767330,0.02034034,43789.0,43783.0,0.570986]
[1633053767528,0.19016276,43786.0,43783.0,0.22837]
[1633053767730,0.00127647,43784.0,43783.0,0.22837]
[1633053767926,0.00127647,43784.0,43781.0,0.01860026]
[1633053768526,0.29591381,43783.0,43781.0,0.01860026]
[1633053769128,0.228099,43782.0,43781.0,0.01860026]
[1633053770326,0.43741927,43783.0,43781.0,0.01860026]
[1633053770526,0.228099,43782.0,43781.0,0.01860026]
[1633053770727,0.60766267,43782.0,43781.0,0.01860026]
[1633053771726,0.42653694,43782.0,43781.0,0.01860026]
[1633053771928,0.228099,43782.0,43781.0,0.01860026]
[1633053772727,0.40531227,43782.0,43781.0,0.01860026]
[1633053773129,0.62507631,43782.0,43781.0,0.01860026]
[1633053774133,0.67627752,43782.0,43781.0,0.01860026]
[1633053774331,0.85254752,43782.0,43781.0,0.01860026]
[1633053774927,0.67533425,43782.0,43781.0,0.01860026]
[1633053775530,0.85327049,43782.0,43781.0,0.01860026]
[1633053776932,0.67533425,43782.0,43781.0,0.01860026]
[1633053779337,0.59906425,43782.0,43781.0,0.01860026]
[1633053779735,0.37930021,43782.0,43781.0,0.01860026]
[1633053779938,0.228099,43782.0,43781.0,0.01860026]
[1633053780140,0.01791596,43789.0,43781.0,0.24669926]
[1633053780335,0.01791596,43789.0,43781.0,0.01860026]
[1633053780534,0.01791596,43789.0,43782.0,0.2286291]
[1633053780734,0.19610005,43789.0,43782.0,0.2286291]
[1633053780936,0.19610005,43789.0,43783.0,0.09012983]
[1633053781133,0.19610005,43789.0,43784.0,0.228099]
[1633053782733,0.19610005,43789.0,43783.0,0.228442]
[1633053783335,0.53875605,43789.0,43783.0,0.228442]
[1633053786940,0.19610005,43789.0,43783.0,0.228442]
[1633053787341,0.24610005,43789.0,43783.0,0.228442]
[1633053788942,0.24610005,43789.0,43782.0,0.25795551]
[1633053789146,0.24610005,43789.0,43781.0,0.01860026]
[1633053790143,0.342688,43785.0,43781.0,0.01677988]
[1633053790344,0.342688,43785.0,43782.0,0.228099]
[1633053790545,0.17940333,43788.0,43784.0,0.00125252]
[1633053790814,0.19610005,43789.0,43785.0,0.228099]
[1633053791546,0.19610005,43789.0,43784.0,0.22966452]
[1633053792147,0.19610005,43789.0,43786.0,0.228416]
[1633053792652,0.01791596,43789.0,43788.0,1.22127563]
[1633053792851,0.01791596,43789.0,43788.0,0.22990473]
[1633053793056,0.0004,43793.0,43789.0,0.578099]
[1633053793249,0.00126,43800.0,43792.0,0.00122545]
[1633053793452,0.00126,43800.0,43793.0,0.6515033]
[1633053793651,0.00126,43800.0,43793.0,1.04541797]
[1633053793849,0.00126,43800.0,43793.0,1.26861797]
[1633053794052,0.00126,43800.0,43793.0,1.29761797]
[1633053795050,0.00046808,43794.0,43793.0,1.29761797]
[1633053795250,0.00046808,43794.0,43793.0,1.26861797]
[1633053796050,0.00046808,43794.0,43793.0,1.30661797]
[1633053797252,0.00046808,43794.0,43793.0,1.26861797]
[1633053798052,0.00046808,43794.0,43793.0,1.30861797]
[1633053799455,0.00046808,43794.0,43793.0,1.26861797]
[1633053800115,0.00046808,43794.0,43793.0,1.30861797]
[1633053800714,0.00046808,43794.0,43793.0,1.30808787]
[1633053801315,0.00046808,43794.0,43793.0,1.50808787]
[1633053801519,0.00046808,43794.0,43793.0,1.50861797]
[1633053801716,0.00046808,43794.0,43793.0,1.50808787]
[1633053801920,0.00046808,43794.0,43793.0,1.26861797]
[1633053802115,0.00046808,43794.0,43793.0,1.30861797]
[1633053803117,0.0008,43799.0,43794.0,0.45]
[1633053803316,0.0008,43799.0,43794.0,0.40268774]
[1633053803518,0.0008,43799.0,43794.0,0.62588774]
[1633053804118,0.0008,43799.0,43794.0,0.66588774]
[1633053804919,0.0008,43799.0,43794.0,0.66641784]
[1633053805324,0.0008,43799.0,43794.0,0.62588774]
[1633053805522,0.00046109,43795.0,43794.0,0.62588774]
[1633053806122,0.00046109,43795.0,43794.0,0.66588774]
[1633053806522,0.00046109,43795.0,43794.0,0.44268774]
[1633053807324,0.00046109,43795.0,43794.0,0.40268774]
[1633053808124,0.00046109,43795.0,43794.0,0.44205627]
[1633053808324,0.00046109,43795.0,43794.0,0.2676291]
[1633053808525,0.00046109,43795.0,43794.0,0.267099]
[1633053809128,0.00046109,43795.0,43794.0,0.2676291]
[1633053809328,0.00046109,43795.0,43794.0,0.40177119]
[1633053810127,0.00046109,43795.0,43794.0,0.44024109]
[1633053810730,0.00046109,43795.0,43794.0,0.267099]
[1633053811330,0.00046109,43795.0,43794.0,0.228099]
[1633053812031,0.00046109,43795.0,43794.0,0.267099]
[1633053813935,0.00174854,43795.0,43794.0,0.039]
[1633053814136,0.00174854,43795.0,43794.0,0.079]
[1633053814137,0.41331004,43795.0,43794.0,0.079]
[1633053814534,0.47817861,43795.0,43794.0,0.079]
[1633053814932,0.82080261,43795.0,43794.0,0.079]
[1633053815138,0.37984754,43795.0,43794.0,0.079]
[1633053815338,0.05174854,43795.0,43794.0,0.079]
[1633053815537,0.05174854,43795.0,43787.0,0.228415]
[1633053815538,0.00174854,43795.0,43787.0,0.228415]
[1633053815732,0.00174854,43795.0,43788.0,0.228099]
[1633053815933,0.00168745,43795.0,43788.0,0.228099]
[1633053816133,0.00168745,43795.0,43791.0,0.228391]
[1633053817733,0.00168745,43795.0,43791.0,0.31510368]
[1633053818139,0.00168745,43795.0,43791.0,0.264391]
[1633053819333,0.00168745,43795.0,43791.0,0.228391]
[1633053820140,0.00168745,43795.0,43791.0,0.265391]
[1633053820939,0.34428745,43795.0,43791.0,0.037]
[1633053821537,0.39428745,43795.0,43786.0,0.65586814]
[1633053821740,0.28468813,43794.0,43786.0,0.65586814]
[1633053821938,0.28468813,43794.0,43786.0,0.456801]
[1633053822146,0.00122898,43789.0,43786.0,0.038]
[1633053822337,0.13349898,43789.0,43786.0,0.038]
[1633053822539,0.18800317,43788.0,43786.0,0.038]
[1633053822738,0.18513819,43787.0,43786.0,0.038]
[1633053822940,0.49976419,43787.0,43786.0,0.038]
[1633053823344,0.42094134,43787.0,43786.0,0.038]
[1633053824138,0.42094134,43787.0,43786.0,0.032]
[1633053824339,0.51954462,43787.0,43786.0,0.032]
[1633053825344,0.51954462,43787.0,43779.0,0.228403]
[1633053825541,0.22844638,43784.0,43779.0,0.228403]
[1633053825743,0.22844638,43784.0,43780.0,0.228099]
[1633053825744,0.18376475,43783.0,43780.0,0.228099]
[1633053825944,0.23376475,43783.0,43780.0,0.228099]
[1633053827747,0.27844638,43784.0,43780.0,0.228099]
[1633053828147,0.27844638,43784.0,43780.0,0.267099]
[1633053828345,0.17758788,43783.0,43780.0,0.267099]
[1633053829346,0.17758788,43783.0,43780.0,0.228099]
[1633053829548,0.27844638,43784.0,43780.0,0.228099]
[1633053829748,0.17797384,43783.0,43779.0,0.228403]
[1633053829948,0.17797384,43783.0,43780.0,0.228099]
[1633053830150,0.17797384,43783.0,43780.0,0.267099]
[1633053831347,0.17797384,43783.0,43780.0,0.228099]
[1633053831548,0.17797384,43783.0,43779.0,0.228403]
[1633053831749,0.17849817,43783.0,43780.0,0.228099]
[1633053831949,0.27844638,43784.0,43780.0,0.228099]
[1633053832152,0.27844638,43784.0,43779.0,0.267403]
[1633053832351,0.18281866,43783.0,43779.0,0.267403]
[1633053832551,0.18281866,43783.0,43780.0,0.228099]
[1633053832811,0.27844638,43784.0,43780.0,0.228099]
[1633053832952,0.05,43784.0,43779.0,0.610058]
[1633053833151,0.05,43784.0,43780.0,0.228099]
[1633053833351,0.24480976,43786.0,43780.0,0.228099]
[1633053834153,0.24480976,43786.0,43780.0,0.267099]
[1633053834350,0.24480976,43786.0,43780.0,0.38165]
[1633053835352,0.24480976,43786.0,43780.0,0.34265]
[1633053836154,0.24480976,43786.0,43780.0,0.039]
[1633053837355,0.24480976,43786.0,43780.0,0.342641]
[1633053837554,0.24480976,43786.0,43779.0,0.228403]
[1633053837754,0.24480976,43786.0,43780.0,0.228099]
[1633053838827,0.24480976,43786.0,43779.0,0.267403]
[1633053838828,0.00246655,43781.0,43779.0,0.267403]
[1633053838962,0.00246655,43781.0,43779.0,0.039]
[1633053838963,0.00125877,43780.0,43779.0,0.039]
[1633053839359,0.21322849,43780.0,43769.0,0.1666]
[1633053839562,0.19561061,43771.0,43768.0,1.0892]
[1633053839766,0.19561061,43771.0,43763.0,1.1261]
[1633053839767,0.00122641,43769.0,43763.0,1.1261]
[1633053839962,0.00125406,43764.0,43760.0,0.4814]
[1633053840160,0.20388382,43764.0,43760.0,0.4814]
[1633053840559,0.25388382,43764.0,43760.0,0.4814]
[1633053840957,0.20388382,43764.0,43760.0,0.4814]
[1633053841157,0.05,43764.0,43760.0,0.4814]
[1633053841757,0.06911,43765.0,43760.0,0.4814]
[1633053841957,0.00123791,43765.0,43760.0,0.4814]
[1633053842157,0.00123791,43765.0,43760.0,0.5214]
[1633053842358,0.342861,43763.0,43760.0,0.5214]
[1633053842559,0.392861,43763.0,43760.0,0.5214]
[1633053843558,0.392861,43763.0,43760.0,0.4814]
[1633053844159,0.392861,43763.0,43760.0,0.5174]
[1633053844357,0.05,43763.0,43760.0,0.5174]
[1633053844760,0.00123791,43765.0,43760.0,0.5174]
[1633053844960,0.19684787,43771.0,43761.0,0.37894071]
[1633053845161,0.19684787,43771.0,43762.0,0.0005301]
[1633053845357,0.18976976,43770.0,43762.0,0.0005301]
[1633053845761,0.18976976,43770.0,43766.0,0.07300544]
[1633053846359,0.18976976,43770.0,43767.0,0.228099]
[1633053848163,0.4182912,43770.0,43767.0,0.264099]
[1633053849564,0.4182912,43770.0,43767.0,0.228099]
[1633053850166,0.4182912,43770.0,43767.0,0.036]
[1633053851569,0.4182912,43770.0,43763.0,0.09581296]
[1633053851969,0.4182912,43770.0,43763.0,0.09634306]
[1633053852165,0.4182912,43770.0,43763.0,0.13381296]
[1633053852567,0.4182912,43770.0,43763.0,0.038]
[1633053852769,0.8330772,43770.0,43763.0,0.038]
[1633053852970,0.4902812,43770.0,43763.0,0.038]
[1633053853570,0.18117398,43766.0,43760.0,0.4814]
[1633053853830,0.19933523,43765.0,43761.0,0.228099]
[1633053853974,0.2285539,43764.0,43761.0,0.228099]
[1633053854173,0.2785539,43764.0,43761.0,0.228099]
[1633053854575,0.05,43764.0,43762.0,0.2237301]
[1633053854773,0.08505554,43778.0,43763.0,0.24953201]
[1633053854971,0.1,43781.0,43768.0,0.1072385]
[1633053855174,0.1,43781.0,43768.0,0.228491]
[1633053855371,0.22852411,43777.0,43768.0,0.228491]
[1633053855573,0.21200056,43773.0,43769.0,0.20504617]
[1633053855773,0.26200056,43773.0,43769.0,0.20504617]
[1633053855973,0.392796,43771.0,43766.0,0.0957415]
[1633053856173,0.05,43771.0,43769.0,0.037]
[1633053856571,0.26200056,43773.0,43769.0,0.037]
[1633053856772,0.49050367,43773.0,43769.0,0.037]
[1633053856978,0.342801,43770.0,43769.0,0.037]
[1633053857373,0.6209,43770.0,43769.0,0.037]
[1633053857773,0.69253013,43770.0,43769.0,0.037]
[1633053857974,0.7938267,43770.0,43769.0,0.037]
[1633053858174,0.7938267,43770.0,43768.0,0.2590354]
[1633053858373,0.5657277,43770.0,43769.0,0.03]
[1633053858978,0.49409757,43770.0,43768.0,0.2590354]
[1633053859178,0.49409757,43770.0,43763.0,0.0202]
[1633053859378,0.15129657,43770.0,43763.0,0.0202]
[1633053860180,0.15129657,43770.0,43764.0,0.228099]
[1633053861379,0.49409657,43770.0,43764.0,0.228099]
[1633053861578,0.49409657,43770.0,43763.0,0.0202]
[1633053862384,0.49409657,43770.0,43763.0,0.0572]
[1633053863584,0.15129657,43770.0,43763.0,0.0202]
[1633053864385,0.15129657,43770.0,43763.0,0.0582]
[1633053865384,0.15129657,43770.0,43764.0,0.228099]
[1633053866384,0.49409957,43770.0,43764.0,0.265099]
[1633053866985,0.15129657,43770.0,43764.0,0.265099]
[1633053867192,0.15,43770.0,43764.0,0.265099]
[1633053867386,0.05,43770.0,43764.0,0.265099]
[1633053867590,0.05,43770.0,43764.0,0.228099]
[1633053868388,0.05,43770.0,43764.0,0.33334199]
[1633053869190,0.3928,43770.0,43764.0,0.33334199]
[1633053869389,0.3928,43770.0,43766.0,0.06528845]
[1633053869592,0.05,43770.0,43766.0,0.06528845]
[1633053870193,0.05,43770.0,43765.0,0.06528564]
[1633053870392,0.05,43770.0,43766.0,0.04]
[1633053871391,0.342804,43769.0,43766.0,0.04]
[1633053871590,0.342804,43769.0,43765.0,0.06528564]
[1633053871992,0.342804,43769.0,43766.0,0.228099]
[1633053872391,0.342804,43769.0,43765.0,0.10528564]
[1633053873592,0.342804,43769.0,43765.0,0.06528564]
[1633053873994,0.342804,43769.0,43766.0,0.228099]
[1633053874397,0.342804,43769.0,43765.0,0.10628564]
[1633053874595,0.342804,43769.0,43766.0,0.28356292]
[1633053875402,0.342804,43769.0,43765.0,0.10630576]
[1633053876397,0.342804,43769.0,43765.0,0.14630576]
[1633053877596,0.342804,43769.0,43765.0,0.06530576]
[1633053878397,0.342804,43769.0,43765.0,0.10530576]
[1633053878598,0.342804,43769.0,43765.0,0.06530576]
[1633053880201,0.24778109,43766.0,43765.0,0.06682649]
[1633053880402,0.24527209,43766.0,43765.0,0.29990077]
[1633053880605,0.19527209,43766.0,43765.0,0.29990077]
[1633053880870,0.24527209,43766.0,43765.0,0.29990077]
[1633053881602,0.24527209,43766.0,43765.0,0.25990077]
[1633053882406,0.24527209,43766.0,43765.0,0.29890077]
[1633053884203,0.24527209,43766.0,43765.0,0.25990077]
[1633053884404,0.24527209,43766.0,43765.0,0.29790077]
[1633053885003,0.42464607,43766.0,43765.0,0.29790077]
[1633053885203,0.24527209,43766.0,43765.0,0.29790077]
[1633053885603,0.24527209,43766.0,43765.0,0.25990077]
[1633053886405,0.24527209,43766.0,43765.0,0.29590077]
[1633053887212,0.57457931,43766.0,43765.0,0.29590077]
[1633053887605,0.57457931,43766.0,43765.0,0.25990077]
[1633053888004,0.76281546,43766.0,43765.0,0.25990077]
[1633053888408,0.78027987,43766.0,43765.0,0.28790077]
[1633053889607,0.75327987,43766.0,43765.0,0.25990077]
[1633053890411,0.78027987,43766.0,43765.0,0.28590077]
[1633053891610,0.78027987,43766.0,43765.0,0.25990077]
[1633053891611,0.75327987,43766.0,43765.0,0.25990077]
[1633053892406,0.78127987,43766.0,43765.0,0.28490077]
[1633053893612,0.78127987,43766.0,43765.0,0.25990077]
[1633053893810,0.75327987,43766.0,43765.0,0.25990077]
[1633053894409,0.75327987,43766.0,43765.0,0.28490077]
[1633053894410,0.77927987,43766.0,43765.0,0.28490077]
[1633053894812,0.77954477,43766.0,43765.0,0.28490077]
[1633053895611,0.75354477,43766.0,43765.0,0.25990077]
[1633053896414,0.77854477,43766.0,43765.0,0.28390077]
[1633053897813,0.75354477,43766.0,43765.0,0.25990077]
[1633053898016,0.37930722,43766.0,43765.0,0.25990077]
[1633053898219,0.378099,43766.0,43765.0,0.25990077]
[1633053898415,0.401099,43766.0,43765.0,0.28490077]
[1633053899219,0.251099,43766.0,43765.0,0.28490077]
[1633053899816,0.228099,43766.0,43765.0,0.25990077]
[1633053900419,0.252099,43766.0,43765.0,0.28690077]
[1633053900616,0.024,43766.0,43765.0,0.28690077]
[1633053901618,0.1792382,43767.0,43765.0,0.25990077]
[1633053901619,0.2292382,43767.0,43765.0,0.25990077]
[1633053902421,0.07,43767.0,43765.0,0.28790077]
[1633053902618,0.02,43767.0,43765.0,0.28790077]
[1633053903621,0.61405266,43768.0,43765.0,0.25990077]
[1633053903822,0.228099,43767.0,43765.0,0.25990077]
[1633053904426,0.355099,43767.0,43765.0,0.28590077]
[1633053905823,0.328099,43767.0,43765.0,0.2605828]
[1633053906423,0.53423871,43767.0,43765.0,0.2865828]
[1633053906624,0.01581217,43766.0,43765.0,0.2865828]
[1633053906824,0.24391117,43766.0,43765.0,0.2865828]
[1633053907022,0.39391117,43766.0,43765.0,0.2865828]
[1633053908024,0.39727031,43766.0,43765.0,0.2865828]
[1633053908225,0.39727031,43766.0,43765.0,0.2605828]
[1633053908425,0.40027031,43766.0,43765.0,0.2905828]
[1633053908828,0.57725252,43766.0,43765.0,0.2905828]
[1633053909229,0.57425252,43766.0,43765.0,0.2605828]
[1633053909627,0.39727031,43766.0,43765.0,0.2605828]
[1633053910427,0.40146087,43766.0,43765.0,0.2925828]
[1633053911433,0.30146087,43766.0,43765.0,0.2925828]
[1633053911629,0.05,43766.0,43765.0,0.2605828]
[1633053911836,0.27122966,43768.0,43765.0,0.2605828]
[1633053912434,0.29722966,43768.0,43765.0,0.2875828]
[1633053912633,0.076,43768.0,43765.0,0.2875828]
[1633053912839,0.076,43768.0,43765.0,0.4380428]
[1633053912840,0.026,43768.0,43765.0,0.4380428]
[1633053913032,0.026,43768.0,43767.0,1.00222676]
[1633053913233,0.026,43768.0,43767.0,1.2611405]
[1633053913433,0.026,43768.0,43767.0,1.2616706]
[1633053913635,0.026,43768.0,43767.0,0.3616706]
[1633053913840,0.00129721,43775.0,43767.0,0.25891374]
[1633053914034,0.00129721,43775.0,43767.0,0.0202]
[1633053914237,0.00699953,43772.0,43767.0,0.0202]
[1633053914434,0.00699953,43772.0,43767.0,0.0542]
[1633053914832,0.00699953,43772.0,43765.0,0.00220276]
[1633053914833,0.09347737,43770.0,43765.0,0.00220276]
[1633053915039,0.00125239,43766.0,43765.0,0.00220276]
[1633053915235,0.14462808,43766.0,43765.0,0.25908448]
[1633053915435,0.39861973,43766.0,43765.0,0.00220276]
[1633053915636,0.62671873,43766.0,43765.0,0.25539469]
[1633053915836,0.72671873,43766.0,43765.0,0.00220276]
[1633053916037,0.72671873,43766.0,43765.0,0.25539469]
[1633053916434,0.75471873,43766.0,43765.0,0.28139469]
[1633053917835,0.72671873,43766.0,43765.0,0.25539469]
[1633053918435,0.75471873,43766.0,43765.0,0.28139469]
[1633053920639,0.75471873,43766.0,43765.0,0.026]
[1633053921041,0.55072708,43766.0,43765.0,0.026]
[1633053921241,0.41176469,43766.0,43765.0,0.026]
[1633053921638,0.38376469,43766.0,43760.0,0.4814]
[1633053921840,0.28203594,43765.0,43761.0,0.2197674]
[1633053922044,0.342856,43763.0,43761.0,0.2197674]
[1633053922243,0.392856,43763.0,43761.0,0.2197674]
[1633053922441,0.1,43762.0,43761.0,0.2497674]
[1633053923245,0.27847456,43762.0,43761.0,0.03]
[1633053924246,0.1,43762.0,43761.0,0.03]
[1633053924448,0.128,43762.0,43761.0,0.058]
[1633053924645,0.128,43762.0,43761.0,0.028]
[1633053924646,0.30780101,43762.0,43761.0,0.028]
[1633053925251,0.128,43762.0,43761.0,0.028]
[1633053925450,0.028,43762.0,43761.0,0.04662744]
[1633053925647,0.028,43762.0,43761.0,0.27419634]
[1633053925909,0.2048078,43767.0,43761.0,0.24619634]
[1633053926051,0.1,43766.0,43761.0,0.01862744]
[1633053926447,0.1,43766.0,43761.0,0.05262744]
[1633053927046,0.22855345,43765.0,43761.0,0.05262744]
[1633053927247,0.22855345,43765.0,43761.0,0.05209734]
[1633053927451,0.27855345,43765.0,43761.0,0.05209734]
[1633053927649,0.27855345,43765.0,43761.0,0.05262744]
[1633053927852,0.27855345,43765.0,43761.0,0.01862744]
[1633053928448,0.27855345,43765.0,43761.0,0.05209734]
[1633053929252,0.27855345,43765.0,43761.0,0.05361821]
[1633053930448,0.27855345,43765.0,43761.0,0.01961821]
[1633053930649,0.27855345,43765.0,43761.0,0.05361821]
[1633053931050,0.27855345,43765.0,43761.0,0.05239282]
[1633053931449,0.342848,43764.0,43761.0,0.03552087]
[1633053931912,0.392848,43764.0,43761.0,0.00152087]
[1633053932451,0.1,43763.0,43761.0,0.00152087]
[1633053932653,0.1,43763.0,43761.0,0.03552087]
[1633053933855,0.1,43763.0,43761.0,0.00152087]
[1633053934651,0.1,43763.0,43761.0,0.03552087]
[1633053935855,0.1,43763.0,43761.0,0.00152087]
[1633053936654,0.1,43763.0,43761.0,0.03552087]
[1633053937917,0.1,43763.0,43761.0,0.00152087]
[1633053938656,0.1,43763.0,43761.0,0.03552087]
[1633053940658,0.1,43763.0,43761.0,0.06952087]
[1633053941262,0.1,43763.0,43761.0,0.0828369]
[1633053941858,0.1,43763.0,43761.0,0.06952087]
[1633053942059,0.1,43763.0,43761.0,0.00152087]
[1633053942658,0.1,43763.0,43761.0,0.03552087]
[1633053943061,0.1,43763.0,43761.0,0.00152087]
[1633053944662,0.1,43763.0,43761.0,0.03552087]
[1633053945966,0.1,43763.0,43761.0,0.00152087]
[1633053946566,0.1,43763.0,43761.0,0.03552087]
[1633053947623,0.32143576,43763.0,43761.0,0.03552087]
[1633053947823,0.32143576,43763.0,43761.0,0.00152087]
[1633053948426,0.1,43763.0,43761.0,0.00152087]
[1633053948626,0.1,43763.0,43761.0,0.03452087]
[1633053949223,0.095,43763.0,43761.0,0.03452087]
[1633053949946,0.095,43763.0,43761.0,0.00152087]
[1633053950748,0.095,43763.0,43761.0,0.03552087]
[1633053951948,0.095,43763.0,43761.0,0.00152087]
[1633053952748,0.09,43763.0,43761.0,0.03552087]
[1633053953949,0.09,43763.0,43761.0,0.00152087]
[1633053954749,0.09,43763.0,43761.0,0.03552087]
[1633053955954,0.09,43763.0,43761.0,0.00152087]
[1633053956649,0.09,43763.0,43761.0,0.03552087]
[1633053958053,0.18247364,43762.0,43761.0,0.00152087]
[1633053958458,0.41875783,43762.0,43761.0,0.00152087]
[1633053958661,0.44575783,43762.0,43760.0,0.29117092]
[1633053958859,5.223e-05,43760.0,43749.0,0.48164945]
[1633053959060,0.18922868,43751.0,43749.0,0.41640961]
[1633053959460,0.05,43750.0,43749.0,0.31640961]
[1633053959855,0.18922868,43751.0,43749.0,0.31640961]
[1633053959856,0.23922868,43751.0,43749.0,0.31640961]
[1633053960260,0.58220768,43751.0,43749.0,0.31640961]
[1633053960655,0.58220768,43751.0,43749.0,0.34840961]
[1633053961856,0.58220768,43751.0,43749.0,0.31640961]
[1633053962656,0.58220768,43751.0,43749.0,0.34840961]
[1633053963857,0.58220768,43751.0,43749.0,0.31640961]
[1633053964259,0.58220768,43751.0,43749.0,2.94766491]
[1633053964658,0.58220768,43751.0,43749.0,2.97966491]
[1633053965260,0.58220768,43751.0,43750.0,0.01851276]
[1633053965460,0.392979,43751.0,43750.0,0.01851276]
[1633053966662,0.392979,43751.0,43750.0,0.05051276]
[1633053967862,0.392979,43751.0,43750.0,0.01851276]
[1633053968663,0.392979,43751.0,43750.0,0.05051276]
[1633053969664,0.58341361,43751.0,43750.0,0.05051276]
[1633053970066,0.58341361,43751.0,43750.0,0.01851276]
[1633053970665,0.61141361,43751.0,43750.0,0.04951276]
[1633053971471,0.420979,43751.0,43750.0,0.04951276]
[1633053971668,0.078,43751.0,43750.0,0.04951276]
[1633053971865,0.028,43751.0,43750.0,0.24661176]
[1633053972066,0.392943,43753.0,43750.0,0.24661176]
[1633053972266,0.392943,43753.0,43750.0,0.01851276]
[1633053972669,0.421943,43753.0,43750.0,0.04951276]
[1633053973929,0.342948,43752.0,43750.0,0.01851276]
[1633053974274,0.53204624,43752.0,43750.0,0.01851276]
[1633053974469,0.18326015,43751.0,43750.0,0.01851276]
[1633053974669,0.23326015,43751.0,43750.0,0.04951276]
[1633053975469,0.23326015,43751.0,43750.0,0.031]
[1633053976071,0.23326015,43751.0,43749.0,0.35628008]
[1633053976675,0.23326015,43751.0,43749.0,0.38828008]
[1633053977279,0.18337051,43750.0,43749.0,0.38828008]
[1633053977477,0.53940091,43750.0,43749.0,0.38828008]
[1633053978073,0.53940091,43750.0,43749.0,0.35628008]
[1633053978674,0.56440091,43750.0,43749.0,0.38328008]
[1633053978874,0.3810304,43750.0,43749.0,0.38328008]
[1633053979673,0.47689899,43750.0,43749.0,0.38328008]
[1633053979931,0.6606421,43750.0,43749.0,0.38328008]
[1633053980076,0.6356421,43750.0,43749.0,0.35628008]
[1633053980673,0.6636421,43750.0,43749.0,0.38228008]
[1633053982675,0.6646421,43750.0,43749.0,0.38028008]
[1633053986077,0.48089899,43750.0,43749.0,0.38028008]
[1633053986277,0.45189899,43750.0,43749.0,0.35628008]
[1633053986679,0.66378574,43750.0,43749.0,0.38028008]
[1633053988079,0.66378574,43750.0,43749.0,0.35628008]
[1633053988080,0.63478574,43750.0,43749.0,0.35628008]
[1633053988942,0.63585434,43750.0,43749.0,0.38028008]
[1633053989281,0.45296759,43750.0,43749.0,0.38028008]
[1633053989683,0.6451337,43750.0,43749.0,0.38028008]
[1633053990088,0.15109023,43749.0,43742.0,0.0032]
[1633053990286,0.228099,43748.0,43742.0,0.0032]
[1633053990481,0.00986951,43746.0,43742.0,0.0032]
[1633053990884,0.00986951,43746.0,43742.0,0.0332]
[1633053991082,0.228099,43745.0,43742.0,0.0332]
[1633053991283,0.23430868,43743.0,43742.0,0.0332]
[1633053991484,0.84896638,43743.0,43742.0,0.0332]
[1633053991682,0.91439361,43743.0,43742.0,0.0332]
[1633053992683,0.91439361,43743.0,43742.0,0.0032]
[1633053992884,0.94239361,43743.0,43742.0,0.0292]
[1633053993485,1.15249361,43743.0,43742.0,0.0292]
[1633053994087,1.12449361,43743.0,43742.0,0.0032]
[1633053994949,1.15149361,43743.0,43742.0,0.0262]
[1633053995289,1.17169361,43743.0,43742.0,0.0262]
[1633053996089,1.14469361,43743.0,43742.0,0.0032]
[1633053996989,1.17069361,43743.0,43742.0,0.0252]
[1633053997989,1.17069361,43743.0,43742.0,0.0032]
[1633053998192,1.14469361,43743.0,43742.0,0.0032]
[1633053998790,1.17269361,43743.0,43742.0,0.0262]
[1633053999990,1.17269361,43743.0,43742.0,0.0032]
[1633054000194,1.14469361,43743.0,43742.0,0.0032]
[1633054000792,1.17169361,43743.0,43742.0,0.0262]
[1633054001392,1.17169361,43743.0,43742.0,0.0162]
[1633054001795,0.90434296,43743.0,43742.0,0.0162]